Cogmind - Beta 14 @@@ ROGUE MODE // 2025.03.08 @ 23:46:25 Player: Scringis Result: Self-destructed Performance ------------- Evolutions (1) 500 Regions Visited (2) 400 Robots Destroyed (5) 25 Value Destroyed (111) 111 Prototype IDs (0) 0 Alien Tech Used (0) 0 Bonus (200) 200 TOTAL SCORE: 1236 Bonus ------- Pacifist 200 Cogmind --------- Core Integrity 151/400 Matter 300/300 Energy 100/100 System Corruption 0% Temperature Cool (0) Movement Core (100) Ox1 Location -9/Materials Parts ------- > --- POWER (1) -------- (None) > --- PROPULSION (2) --- (None) > --- UTILITY (2) ------ Small Storage Unit > --- WEAPON (4) ------- (None) > --- INVENTORY (8) ---- Light Ion Engine Peak State ------------ > --- POWER ------------ Light Ion Engine > --- PROPULSION ------- Light Treads Light Treads > --- UTILITY ---------- Small Storage Unit > --- WEAPON ----------- Light Assault Rifle > --- INVENTORY -------- Medium Laser Medium Laser [Rating: 5] Favorites ----------- Power Light Ion Engine Engine Light Ion Engine Propulsion Light Treads Treads Light Treads Utility Small Storage Unit Storage Small Storage Unit Weapon Light Assault Rifle Ballistic Gun Light Assault Rifle Build | -11 -10 -9 ------- Run | Yrd Mat Mat Slots Evolved 2 | . . 2 Power . | . . . Propulsion . | . . . Utility . | . . . Weapon 2 | . . 2 Parts Attached 5 | 5 . . Power 1 | 1 . . Engine 1 | 1 . . Core . | . . . Reactor . | . . . Propulsion 2 | 2 . . Treads 2 | 2 . . Leg . | . . . Wheel . | . . . Hover . | . . . Flight . | . . . Utility 1 | 1 . . Device . | . . . Storage 1 | 1 . . Processor . | . . . Hackware . | . . . Protection . | . . . Artifact . | . . . Weapon 1 | 1 . . Energy Gun . | . . . Energy Cannon . | . . . Ballistic Gun 1 | 1 . . Ballistic Cannon . | . . . Launcher . | . . . Special Weapon . | . . . Impact Weapon . | . . . Slashing Weapon . | . . . Piercing Weapon . | . . . Special Melee Weapon . | . . . Unidentified Prototypes . | . . . Parts Lost 4 | . . 4 Power 1 | . . 1 Propulsion 2 | . . 2 Utility . | . . . Weapon 1 | . . 1 Highest Loss Streak 4 | . . 4 To Critical Strikes . | . . . Average Slot Usage (%) 53 | . 71 50 Engine 10 | . 14 9 Treads 20 | . 28 19 Storage 11 | . 14 11 Ballistic Gun 11 | . 14 10 Peak Build Rating 5 | 5 5 5 Average Rating 4 | 3 5 4 On Entrance 3 | . 5 5 Naked Turns . | . . . Heaviest Build 9 | 9 9 9 Greatest Support 40 | 40 40 40 Greatest Overweight (x) 1 | . . 1 Average Overweight (x) . | . . . Largest Inventory Capacity 8 | 8 8 8 Average Capacity 7 | 7 8 8 Most Carried 4 | 4 1 1 Average Carried 1 | 1 1 1 Final Capacity 8 | 8 8 8 Final Carried 1 | 1 1 1 Class Distribution -------------------- 100% | Mutant Dominant Class ---------------- Mutant | -10/Materials Mutant | -9/Materials Resources | -11 -10 -9 ----------- Run | Yrd Mat Mat Matter Collected 269 | 227 . 42 Remotely . | . . . Salvage Created 125 | . . 125 Parts 10 | . . 10 Haulers Intercepted . | . . . Recyclers Shooed 1 | . . 1 Parts Field Recycled . | . . . Retrieved Matter . | . . . Parts Self-Destructed . | . . . Prevented . | . . . Kills | -11 -10 -9 ------- Run | Yrd Mat Mat Combat Hostiles Destroyed 5 | . . 5 Guns 5 | . . 5 Classes Destroyed 2 | . . 2 Swarmer 3 | . . 3 Grunt 2 | . . 2 Best Kill Streak 2 | . . 2 Combat Bots Only 2 | . . 2 Max Kills in Single Turn 1 | . . 1 Gunslinging . | . . . Exploded . | . . . Melee . | . . . Uniques/NPCs Destroyed . | . . . Combat | -11 -10 -9 -------- Run | Yrd Mat Mat Hostile Shots Fired 85 | . 4 81 Missed 19 | . 1 18 Damage Taken 706 | . 19 687 Core 249 | . . 249 Absorbed by Shields . | . . . Core Remaining (%) 100 | 100 100 . Volleys Fired 59 | . . 59 Largest 1 | . . 1 Hottest 20 | . . 20 Shots Fired 59 | . . 59 Gun 59 | . . 59 Cannon . | . . . Launcher . | . . . Special . | . . . Kinetic 59 | . . 59 Thermal . | . . . Explosive . | . . . Electromagnetic . | . . . Robot Hit Streak 7 | . . 7 Robot Miss Streak 4 | . . 4 Penetration Max . | . . . Secondary Targets . | . . . Shots Hit Robots 30 | . . 30 Core Hits 13 | . . 13 Critical Kills . | . . . Critical Parts Destroyed . | . . . Critical Strikes . | . . . Melee Attacks . | . . . Impact . | . . . Slashing . | . . . Piercing . | . . . Sneak Attacks . | . . . Combat Hostiles . | . . . Follow-up Attacks . | . . . Damage Inflicted 269 | . . 269 Guns 240 | . . 240 Cannons . | . . . Explosions . | . . . Melee . | . . . Ramming 29 | . . 29 Kinetic 240 | . . 240 Thermal . | . . . Explosive . | . . . Electromagnetic . | . . . Impact . | . . . Slashing . | . . . Piercing . | . . . Highest Corruption . | . . . Average Corruption . | . . . Corruption Purged . | . . . Corruption Blocked . | . . . Overload Shots . | . . . Overflow Damage . | . . . Projectiles . | . . . Explosions . | . . . Melee . | . . . Knockbacks . | . . . Impact . | . . . Kinetic . | . . . Secondary . | . . . Self-Inflicted Damage 10 | . . 10 Shots . | . . . Rammed 12 | . . 12 Targets Rammed 12 | . . 12 Kicked . | . . . Crushed . | . . . Highest Temperature 6 | . . 6 Average Temperature 4 | . . 4 Received Heat Transfer 195 | . . 195 Siege Activations . | . . . Robots Corrupted . | . . . Combat Hostiles . | . . . Parts Fried . | . . . Impact Corruptions . | . . . Robots Melted . | . . . Combat Hostiles . | . . . Parts Melted . | . . . Heat Transferred . | . . . Parts Sabotaged . | . . . Parts Stolen . | . . . Parts Stripped . | . . . Power Chain Reactions . | . . . Alert | -11 -10 -9 ------- Run | Yrd Mat Mat Peak Influence 130 | . 15 130 Initial 5 | . . 5 Average 39 | . 2 61 Maximum Alert Level . | . . . Low Security (%) 100 | 100 100 100 Level 1 . | . . . Level 2 . | . . . Level 3 . | . . . Level 4 . | . . . Level 5 . | . . . High Security . | . . . Max Security . | . . . Squads Dispatched . | . . . Investigation . | . . . Extermination . | . . . Reinforcement . | . . . Assault . | . . . Garrison . | . . . Intercept . | . . . Searches Triggered . | . . . Construction Impeded . | . . . Haulers Reinforced . | . . . Active Scanning Responses . | . . . Cargo Convoy Interrupts . | . . . Stealth | -11 -10 -9 --------- Run | Yrd Mat Mat Distress Signals 2 | . 1 1 Communications Jammed . | . . . Distress Signals . | . . . Times Spotted 15 | . 5 10 Peak Tracking Total 6 | . 4 6 Tactical Retreats . | . . . Traps | -11 -10 -9 ------- Run | Yrd Mat Mat Traps Triggered . | . . . Indirectly . | . . . Trap Hack Attempts . | . . . Triggered . | . . . Disarmed . | . . . Reprogrammed . | . . . Reused . | . . . Traps Extracted . | . . . Installed . | . . . Triggered . | . . . Machines | -11 -10 -9 ---------- Run | Yrd Mat Mat Machines Disabled . | . . . Max in Single Turn . | . . . Machines Repaired . | . . . Machines Dismantled . | . . . Machines Sabotaged . | . . . Overloaded Fab Kills . | . . . Hacking | -11 -10 -9 --------- Run | Yrd Mat Mat Machines Accessed . | . . . Terminals . | . . . Fabricators . | . . . Repair Stations . | . . . Recycling Units . | . . . Scanalyzers . | . . . Garrison Access . | . . . Total Hacks . | . . . Successful . | . . . Failed . | . . . Catastrophic . | . . . Database Lockouts . | . . . Manual . | . . . Terminals . | . . . Fabricators . | . . . Repair Stations . | . . . Recycling Units . | . . . Scanalyzers . | . . . Garrison Access . | . . . Terminal Hacks . | . . . Fabricator Hacks . | . . . Repair Station Hacks . | . . . Recycling Unit Hacks . | . . . Scanalyzer . | . . . Garrison Access Hacks . | . . . Unauthorized Hacks . | . . . Terminals . | . . . Fabricators . | . . . Repair Stations . | . . . Recycling Units . | . . . Scanalyzers . | . . . Garrison Access . | . . . Data Cores Recovered . | . . . Used . | . . . Hacking Detections . | . . . Full Trace Events . | . . . Feedback Events . | . . . Feedback Blocked . | . . . Robot Schematics Acquired . | . . . Robots Built . | . . . Authchips . | . . . Time . | . . . Total Robot Build Rating . | . . . Part Schematics Acquired . | . . . Parts Built . | . . . Authchips . | . . . Time . | . . . Total Part Build Rating . | . . . Parts Repaired . | . . . Time . | . . . Parts Recycled . | . . . Recycled Matter . | . . . Retrieved Matter . | . . . Retrieved Components . | . . . Parts Scanalyzed . | . . . Part Schematics Acquired . | . . . Parts Damaged . | . . . Bothacking | -11 -10 -9 ------------ Run | Yrd Mat Mat Used RIF Installer . | . . . Robots Hacked . | . . . Non-combat . | . . . Combat . | . . . Robot Hacks Applied . | . . . Relay Couplers Released . | . . . Fabnet Peak Effective % . | . . . Robots Rewired . | . . . Allies Hacked . | . . . Hacks Repelled . | . . . Allies | -11 -10 -9 -------- Run | Yrd Mat Mat Total Allies . | . . . Largest Group . | . . . Highest-Rated Group . | . . . Highest-Rated Ally . | . . . Total Orders . | . . . Ally Attacks . | . . . Total Damage . | . . . Kills . | . . . Allies Corrupted . | . . . Allies Melted . | . . . Intel | -11 -10 -9 ------- Run | Yrd Mat Mat Robot Analysis Total . | . . . Derelict Logs Recovered . | . . . Drone Launches . | . . . Drone Recoveries . | . . . Exploration | -11 -10 -9 ------------- Run | Yrd Mat Mat Turns Passed 306 | 73 37 196 Spaces Moved 119 | 48 24 47 Core 16 | 15 . 1 Treads 103 | 33 24 46 Legs . | . . . Wheels . | . . . Hover . | . . . Flight . | . . . Fastest Speed 50 | 50 160 100 Average Speed 145 | 125 160 158 Slowest Speed 160 | 160 160 160 Overloaded Moves . | . . . Propulsion Burnouts . | . . . Robots Hopped . | . . . Cave-ins Triggered . | . . . Exploration Rate (%) 8 | 4 12 8 Regions Visited 2 Branch Regions . Pre-discovered Areas . | . . . Known Exits Taken . | . . . Unknown Exits Taken 2 | 1 1 . Scrap Searched . | . . . Spaces Dug . | . . . Terrain Destroyed . | . . . Melee . | . . . Projectile . | . . . AOE . | . . . Terrain Rammed . | . . . Walls Destroyed . | . . . Machines Disabled . | . . . Actions | -11 -10 -9 --------- Run | Yrd Mat Mat Total 203 | 62 23 118 Wait . | . . . Move 117 | 47 23 47 Hop . | . . . Pick Up 8 | 8 . . Fast Attach . | . . . Attach 5 | 5 . . Detach . | . . . Swap . | . . . Drop 2 | 2 . . Fire 59 | . . 59 Melee . | . . . Ram 7 | . . 7 Kick . | . . . Crush 5 | . . 5 Escape Stasis . | . . . Rewire . | . . . Trap . | . . . Miscellaneous . | . . . Route ------- -11/Scrapyard -10/Materials -9/Materials History --------- Turn | Location | Event 4 | -11/Scrapyard | Discovered new exit (range 14) 74 | -11/Scrapyard | Entered Materials 94 | -10/Materials | Discovered new exit (range 13) 111 | -10/Materials | Entered another Materials area 111 | -9/Materials | Evolved 2 slots: Weapon x2 303 | -9/Materials | Build established: Mutant 303 | -9/Materials | Core integrity fell below 50% 307 | -9/Materials | Self-destructed Last Messages --------------- 00207_ G-47 Trooper destroyed. 00221_ S-10 Pest destroyed. 00224_ R-06 Scavenger collects Flight Unit. 00227_ R-06 Scavenger collects Lgt. Assault Rifle. 00234_ R-06 Scavenger collects Particle Gun. 00237_ R-06 Scavenger collects Aluminum Leg. 00260_ K-01 Serf collects debris. 00265_ M-13 Machinist repairs S-10 Pest. 00266_ Lgt. Treads destroyed. 00267_ Destroyed Lgt. Ion Engine. 00269_ S-10 Pest destroyed. 00276_ R-06 Scavenger collects Lgt. Assault Rifle. 00285_ Acquired 13 matter. 00287_ Lgt. Ion Engine destroyed. 00288_ Slammed into Y-45 Defender. 00299_ Lgt. Assault Rifle destroyed. 00299_ Lgt. Treads destroyed. 00300_ Slammed into Y-45 Defender. Map ----- +----------------------------------------------------+ | ?????????????????????????????????????????????????? | | ?????????????????????????????????????????????????? | | ?????????????????????????????????????????????????? | | ?????????????????????????????????????????????????? | | ?????????????????????????????????????????????????? | | ?????????????????????????????????????????????????? | | ?????????????????????????????????????????????????? | | ?????????????????????????????????????????????????? | | ?????????????????????????????????????????????????? | | ?????????????????????????????????????????????????? | | ?????????????????????????????????????????????????? | | ??????????????????????? ?????????????????????????? | | ??????????????????????? ?????????????????????????? | | ??????????????????????? ?????????????????????????? | | ??????????????????????? ?????????????????????????? | | ??????????????????????? ?????????????????????????? | | ???????????????????#?## ?????????????????????????? | | ??????????????????##!? ?????????????????????????? | | ???????????????????! ? #????????????????????????? | | ???????????????????? #????????????????????????? | | ???????????????????? #????????????????????????? | | ????????????????????? #????????????????????????? | | ?????????????????????? #????????????????????????? | | ??????????????????????#%#??########??????????????? | | ??????????????????????#w####% #??????????????? | | ??????????????????????#%Y@%/Y #??????????????? | | ??????????????????????# ####% #??????????????? | | ??????????????????????# #??# #??????????????? | | ??????????????????????# #??# #??????????????? | | ??????????????????????# #??# #??????????????? | | ??????????????????????# #??###+####??????????????? | | ??????????????????????# ###??? ?????????????????? | | ?????????????????######+# ??? #????????????????? | | ?????????????????# =%# #???? #????????????????? | | ?????????????????#"" *# #????##?????#######????? | | ?????????????????#"T # #?????????? #????? | | ?????????????????#"" # #??#######? #????? | | ?????????????????# !# #### # #????? | | ?????????????????# """ # # #????? | | ?????????????????# """ %+= + #????? | | ?????????????????# """ #! # #????? | | ?????????????????# ###### # #????? | | ?????????????????# """ ####### ##? #????? | | ?????????????????# """ # # #?? #????? | | ?????????????????# """ # + #???#######????? | | ?????????????????# # # #??????????????? | | ?????????????????######## # #??????????????? | | ????????????????????????# """?# #??????????????? | | ????????????????????????# """?# #??????????????? | | ????????????????????????# ""??# #??????????????? | +----------------------------------------------------+ Best States ------------- Heat Dissipation 28 Energy Generation 10 Energy Capacity 125 Matter Stores 300 Matter Capacity 300 Sight Range 16 Terrain Scan Density 10 Evasion (%) 50 Recoil Reduction 2 Item Schematics ----------------- None Robot Schematics ------------------ None Fabricated ------------ Nothing Alien Tech Used ----------------- None Achievements -------------- None Challenges ------------ None Game ------ Seed ArcMicrodissipatorLegs Manual? 0 Play Time 00:02:47 Cumulative 20.7 hours Start 2025.03.08 @ 23:44:43 End 2025.03.08 @ 23:46:25 Sessions 1 Manual Loads 0 Difficulty Rogue Special Mode None Game No. 65 Rogue 65 Adventurer 0 Explorer 0 Win Type - Total 0 Types 0/0/0/0/0/0/0/0/0 Lore% 11 Gallery% 22 Achievement% 21 Wizard Run 0 Options --------- Layout 1 ASCII 0 Keyboard 0 Movement Mouse Keybinds 0 Fullscreen 2 Font 24/Smallcaps Map View 50x35 Zoom Use 0% Tactical HUD 1 Map Filters NONE Filters NONE Steam 1 RUN: 4eb15dc9-a373-4494-8592-7d70ade60bc7